bitfinex-derivatives/quotes_BTCF0:USTF0_20250806
["timestamp","ask_amount","ask_price","bid_price","bid_amount"]
[1754475194406,0.003,114200.0,114190.0,0.8575032]
[1754475194611,0.178138,114200.0,114190.0,1.22220978]
[1754475195011,0.202428,114200.0,114190.0,1.22220978]
[1754475196515,0.202428,114200.0,114190.0,1.33256191]
[1754475197420,0.02729,114200.0,114190.0,1.33256191]
[1754475197719,0.2024279,114200.0,114190.0,1.22220978]
[1754475198108,0.2345079,114200.0,114190.0,1.22220978]
[1754475200518,0.02729,114200.0,114190.0,1.22220978]
[1754475200711,0.003,114200.0,114190.0,1.22220978]
[1754475209335,0.1781378,114200.0,114190.0,1.22220978]
[1754475209525,0.2024278,114200.0,114190.0,1.22220978]
[1754475210428,0.2495278,114200.0,114190.0,1.22220978]
[1754475212534,0.2147878,114200.0,114190.0,0.66010978]
[1754475212737,0.2946878,114200.0,114190.0,0.95982978]
[1754475213037,0.2946878,114200.0,114190.0,0.5932732]
[1754475213237,0.2946878,114200.0,114190.0,0.93531978]
[1754475213439,0.2946878,114200.0,114190.0,0.95797978]
[1754475215730,0.2946878,114200.0,114190.0,0.65825978]
[1754475215929,0.2946878,114200.0,114190.0,0.95789978]
[1754475217337,0.2946878,114200.0,114190.0,0.65825978]
[1754475218242,0.2946878,114200.0,114190.0,0.2935532]
[1754475218537,0.2946878,114200.0,114190.0,0.04727]
[1754475218737,0.76982381,114200.0,114190.0,0.00942]
[1754475218942,0.2229632,114190.0,114180.0,0.927616]
[1754475219245,0.2938532,114190.0,114180.0,0.81726387]
[1754475221734,0.2968532,114190.0,114180.0,0.81726387]
[1754475222231,0.2978532,114190.0,114180.0,0.81726387]
[1754475228447,0.2978532,114190.0,114180.0,0.72968377]
[1754475229650,0.2978532,114190.0,114180.0,0.99258377]
[1754475230540,0.2195632,114190.0,114180.0,0.99258377]
[1754475230747,0.1791533,114190.0,114180.0,0.99258377]
[1754475231851,0.1781533,114190.0,114180.0,0.99258377]
[1754475233051,0.1751533,114190.0,114180.0,0.99258377]
[1754475233452,0.1771533,114190.0,114180.0,0.99258377]
[1754475234556,0.1781533,114190.0,114180.0,0.99258377]
[1754475238057,0.1781533,114190.0,114180.0,0.62787719]
[1754475238258,0.1781533,114190.0,114180.0,0.99258377]
[1754475239156,0.2020133,114190.0,114180.0,0.99258377]
[1754475239559,0.2727933,114190.0,114180.0,0.99258377]
[1754475240659,0.2823933,114190.0,114180.0,1.29210377]
[1754475240957,0.2968533,114190.0,114180.0,1.29210377]
[1754475244058,0.2823933,114190.0,114180.0,1.29210377]
[1754475244553,0.2402233,114190.0,114180.0,1.29210377]
[1754475244752,0.1781533,114190.0,114180.0,1.29210377]
[1754475245152,0.1781533,114190.0,114180.0,1.29206377]
[1754475250662,0.2008133,114190.0,114180.0,1.29206377]
[1754475250863,0.2168133,114190.0,114180.0,1.29206377]
[1754475251063,0.2960733,114190.0,114180.0,1.29206377]
[1754475251760,0.2815233,114190.0,114180.0,1.29206377]
[1754475251963,0.2384433,114190.0,114180.0,1.29206377]
[1754475252164,0.1781533,114190.0,114180.0,1.29206377]
[1754475256470,0.1771533,114190.0,114180.0,1.29206377]
[1754475257669,0.1751533,114190.0,114180.0,1.29206377]
[1754475263966,0.3065139,114200.0,114190.0,0.2360035]
[1754475264172,0.3065139,114200.0,114190.0,0.65374008]
[1754475264470,0.3291739,114200.0,114190.0,0.65374008]
[1754475265172,0.3311739,114200.0,114190.0,0.91664008]
[1754475265368,0.3321739,114200.0,114190.0,0.91664008]
[1754475266069,0.1781515,114200.0,114190.0,0.91664008]
[1754475267273,0.1781515,114200.0,114190.0,1.02699221]
[1754475267477,0.003,114200.0,114190.0,1.02699221]
[1754475267979,0.1781381,114200.0,114190.0,1.02699221]
[1754475268179,0.003,114200.0,114190.0,0.91664008]
[1754475269779,0.1781381,114200.0,114190.0,0.91664008]
[1754475272679,0.1781381,114200.0,114190.0,0.96208667]
[1754475279682,0.2023081,114200.0,114190.0,0.96208667]
[1754475280679,0.2367881,114200.0,114190.0,0.96208667]
[1754475280880,0.2842681,114200.0,114190.0,0.96208667]
[1754475281282,0.2985681,114200.0,114190.0,0.96208667]
[1754475283283,0.2842681,114200.0,114190.0,0.96208667]
[1754475287286,0.2985681,114200.0,114190.0,0.96208667]
[1754475291584,0.2985681,114200.0,114190.0,0.5519335]
[1754475291791,0.2985681,114200.0,114190.0,0.96208667]
[1754475299294,0.2842681,114200.0,114190.0,0.96208667]
[1754475300191,0.2400881,114200.0,114190.0,0.96208667]
[1754475307806,0.2745681,114200.0,114190.0,0.96208667]
[1754475308808,0.2842681,114200.0,114190.0,0.96208667]
[1754475313106,0.003,114200.0,114190.0,1.37223984]
[1754475313410,0.2626995,114210.0,114190.0,1.37223984]
[1754475313411,0.2189134,114210.0,114200.0,0.293918]
[1754475313613,0.2189134,114210.0,114200.0,1.41302434]
[1754475314202,0.2189134,114210.0,114200.0,1.67592434]
[1754475314404,0.2428434,114210.0,114200.0,1.67592434]
[1754475314602,0.3244534,114210.0,114200.0,1.67592434]
[1754475314803,0.3385834,114210.0,114200.0,1.67592434]
[1754475316014,0.3405834,114210.0,114200.0,1.67592434]
[1754475317117,0.3415834,114210.0,114200.0,1.67592434]
[1754475317712,0.2836724,114210.0,114200.0,1.67592434]
[1754475318014,0.2180624,114210.0,114200.0,1.67592434]
[1754475318513,0.003,114210.0,114200.0,1.67592434]
[1754475318716,0.1781228,114210.0,114200.0,1.67592434]
[1754475320312,0.003,114210.0,114200.0,1.67592434]
[1754475320913,0.3823248,114230.0,114220.0,0.2231678]
[1754475321217,0.3823248,114230.0,114220.0,0.96694097]
[1754475322717,0.3853248,114230.0,114220.0,0.96694097]
[1754475323019,0.3893248,114230.0,114220.0,0.96694097]
[1754475324216,0.2060226,114230.0,114220.0,1.67597414]
[1754475324420,0.2060226,114230.0,114220.0,1.26582097]
[1754475325320,0.1820926,114230.0,114220.0,1.67597414]
[1754475325817,0.1820926,114230.0,114220.0,1.26582097]
[1754475326218,0.007,114230.0,114220.0,1.67597414]
[1754475326613,0.007,114230.0,114220.0,1.26582097]
[1754475326819,0.007,114230.0,114220.0,1.67597414]
[1754475327118,0.1820925,114230.0,114220.0,1.26582097]
[1754475327621,0.3017625,114230.0,114220.0,1.26582097]
[1754475332125,0.2550225,114230.0,114220.0,0.8557478]
[1754475332328,0.3017625,114230.0,114220.0,1.26590097]
[1754475332517,0.3017625,114230.0,114220.0,0.76746317]
[1754475332712,0.3017625,114230.0,114220.0,1.04521776]
[1754475333622,0.3017625,114230.0,114220.0,1.22032536]
[1754475335022,0.3017625,114230.0,114220.0,1.22032546]
[1754475336525,0.3017625,114230.0,114220.0,0.92128546]
[1754475339930,0.6008425,114230.0,114220.0,0.74493776]
[1754475341126,0.6008425,114230.0,114220.0,0.92004566]
[1754475341828,0.3017625,114230.0,114220.0,0.92004566]
[1754475344733,0.3017625,114230.0,114220.0,0.74493776]
[1754475345229,0.3017625,114230.0,114220.0,0.92004566]
[1754475346236,0.3017625,114230.0,114220.0,0.74493776]
[1754475347434,0.3017625,114230.0,114220.0,0.92004526]
[1754475348437,0.3017625,114230.0,114220.0,0.92004536]
[1754475349040,0.3017625,114230.0,114220.0,0.74493776]
[1754475349236,0.3017625,114230.0,114220.0,0.92004526]
[1754475352135,0.5866725,114230.0,114220.0,0.92004526]
[1754475352329,0.2550225,114230.0,114220.0,0.92004526]
[1754475352639,0.2220225,114230.0,114220.0,0.96552578]
[1754475353038,0.2551425,114230.0,114220.0,0.96552578]
[1754475354735,0.2551425,114230.0,114220.0,0.91997551]
[1754475354937,0.2220225,114230.0,114220.0,0.91997551]
[1754475359151,0.1820925,114230.0,114220.0,0.91997551]
[1754475361337,0.2060025,114230.0,114220.0,0.91997551]
[1754475361639,0.3015125,114230.0,114220.0,1.21929551]
[1754475364646,0.2878225,114230.0,114220.0,1.21929551]
[1754475364850,0.3015125,114230.0,114220.0,1.21929551]
[1754475369650,0.3015125,114230.0,114220.0,0.91997551]
[1754475371146,0.3015125,114230.0,114220.0,0.74486801]
[1754475371147,0.2212225,114230.0,114220.0,0.74486801]
[1754475371351,0.3021825,114230.0,114220.0,0.91997601]
[1754475374953,0.3001825,114230.0,114220.0,0.91997601]
[1754475375753,1.8001825,114230.0,114220.0,0.91997601]
[1754475377353,0.3001825,114230.0,114220.0,0.91997601]
[1754475378254,0.2971825,114230.0,114220.0,0.91997601]
[1754475380253,0.2971825,114230.0,114220.0,0.74486801]
[1754475380643,0.2971825,114230.0,114220.0,0.7904742]
[1754475381049,0.2971825,114230.0,114220.0,0.9655822]
[1754475382159,0.5962625,114230.0,114220.0,0.9655822]
[1754475383150,0.2971825,114230.0,114220.0,0.9655822]
[1754475383350,0.2824525,114230.0,114220.0,0.9655822]
[1754475387471,0.2179125,114230.0,114220.0,0.9655822]
[1754475392761,0.2495425,114230.0,114220.0,0.9655822]
[1754475395375,0.2727925,114230.0,114220.0,0.9655822]
[1754475395675,0.2971825,114230.0,114220.0,0.9655822]
[1754475399575,0.2824525,114230.0,114220.0,0.9655822]
[1754475399978,0.2411625,114230.0,114220.0,0.9655822]
[1754475400178,0.1770925,114230.0,114220.0,0.9655822]
[1754475400379,0.00034,114230.0,114220.0,1.3756164]
[1754475401976,0.2188603,114240.0,114230.0,0.2241323]
[1754475402278,0.1750905,114240.0,114230.0,1.4146407]
[1754475403881,0.1770905,114240.0,114230.0,1.4146407]
[1754475404680,0.1770905,114240.0,114230.0,0.9588842]
[1754475405580,0.1770905,114240.0,114230.0,1.2217842]
[1754475405581,0.002,114240.0,114230.0,1.2217842]
[1754475405779,0.002,114240.0,114230.0,1.5860961]
[1754475407082,0.004,114240.0,114230.0,1.5860961]
[1754475407783,0.004,114240.0,114230.0,1.59489304]
[1754475408581,0.1750648,114250.0,114240.0,0.1750779]
[1754475408886,0.1312932,114260.0,114250.0,0.2953826]
[1754475408887,0.2625834,114260.0,114250.0,0.2953826]
[1754475409187,0.2625834,114260.0,114250.0,1.2217145]
[1754475409380,0.2855234,114260.0,114250.0,1.2217145]
[1754475409886,0.3189934,114260.0,114250.0,1.2217145]
[1754475410186,0.3239934,114260.0,114250.0,1.2217145]
[1754475410889,0.3395534,114260.0,114250.0,1.2217145]
[1754475411082,0.3613334,114260.0,114250.0,1.2217145]
[1754475412487,0.37001775,114260.0,114250.0,1.2217145]
[1754475412689,0.37949775,114260.0,114250.0,1.29329086]
[1754475412888,0.39331775,114260.0,114250.0,1.29329086]
[1754475415491,0.39631775,114260.0,114250.0,1.29329086]
[1754475417293,0.38249775,114260.0,114250.0,1.29329086]
[1754475418193,0.1830557,114260.0,114250.0,1.29329086]
[1754475418383,0.008,114260.0,114250.0,1.29329086]
[1754475418586,0.008,114260.0,114250.0,1.59329086]
[1754475418895,0.1926036,114270.0,114260.0,0.2953668]
[1754475419193,0.1926036,114270.0,114260.0,0.6596787]
[1754475419392,0.01756,114270.0,114260.0,0.6596787]
[1754475420288,0.02356,114270.0,114260.0,0.6596787]
[1754475420592,0.1985914,114270.0,114260.0,0.6596787]
[1754475421093,0.02656,114270.0,114260.0,0.6596787]
[1754475421693,0.02356,114270.0,114260.0,0.9255787]
[1754475421890,0.01756,114270.0,114260.0,0.94297588]
[1754475422095,0.01756,114270.0,114260.0,0.68007588]
[1754475422294,0.01756,114270.0,114260.0,0.68507588]
[1754475422987,0.1925917,114270.0,114260.0,0.68507588]
[1754475423491,0.01756,114270.0,114260.0,0.68507588]
[1754475429503,0.3091927,114270.0,114260.0,0.68507588]
[1754475430203,0.2622527,114270.0,114260.0,0.68507588]
[1754475432908,0.3091927,114270.0,114260.0,0.6024481]
[1754475433204,0.3091927,114270.0,114260.0,0.96676]
[1754475433591,0.3091927,114270.0,114260.0,1.22966]
[1754475433792,0.3091927,114270.0,114260.0,1.22666]
[1754475433990,0.3091927,114270.0,114260.0,1.22966]
[1754475436002,0.3091927,114270.0,114260.0,1.22266]
[1754475436299,0.3091927,114270.0,114260.0,1.22566]
[1754475436700,0.3091927,114270.0,114260.0,1.22666]
[1754475438200,0.3091927,114270.0,114260.0,1.22366]
[1754475438406,0.3091927,114270.0,114260.0,1.22666]
[1754475439909,0.3091927,114270.0,114260.0,1.2236597]
[1754475440207,0.3091927,114270.0,114260.0,1.2266597]
[1754475441907,0.3091927,114270.0,114260.0,1.2236597]
[1754475442109,0.3091927,114270.0,114260.0,1.2256597]
[1754475442310,0.3091927,114270.0,114260.0,1.2254897]
[1754475443410,0.3091927,114270.0,114260.0,1.2234897]
[1754475443611,0.3091927,114270.0,114260.0,1.2244897]
[1754475448605,0.3091927,114270.0,114260.0,1.26991224]
[1754475449510,0.3091927,114270.0,114260.0,0.8601778]
[1754475449812,0.3091927,114270.0,114260.0,1.26991224]
[1754475450013,0.3091927,114270.0,114260.0,1.09486444]
[1754475450213,0.3091927,114270.0,114260.0,1.26991244]
[1754475453317,0.2947327,114270.0,114260.0,1.26991244]
[1754475454921,0.2531927,114270.0,114260.0,1.26991244]
[1754475457714,0.2856727,114270.0,114260.0,1.26991244]
[1754475458029,0.2947327,114270.0,114260.0,1.26991244]
[1754475458230,0.3091927,114270.0,114260.0,1.26991244]
[1754475458929,0.3091927,114270.0,114260.0,1.26991214]
[1754475461828,0.3092327,114270.0,114260.0,1.26991214]
[1754475462529,0.3092327,114270.0,114260.0,0.5610977]
[1754475462729,0.3092327,114270.0,114260.0,0.97083214]
[1754475467229,0.2947727,114270.0,114260.0,0.97083214]
[1754475467938,0.1926327,114270.0,114260.0,1.38056658]
[1754475468137,0.1926327,114270.0,114260.0,0.97083214]
[1754475468935,0.1926327,114270.0,114260.0,0.5610977]
[1754475469141,0.1926327,114270.0,114260.0,0.97083214]
[1754475470442,0.1926327,114270.0,114260.0,1.27019214]
[1754475470740,0.1926327,114270.0,114260.0,1.67992658]
[1754475470937,1.8062753,114290.0,114280.0,0.1750167]
[1754475471143,1.8062753,114290.0,114280.0,0.96761114]
[1754475472342,1.8072753,114290.0,114280.0,0.96761114]
[1754475472532,1.81709334,114290.0,114280.0,0.96761114]
[1754475472734,1.81709334,114290.0,114280.0,0.92190474]
[1754475473339,1.84116334,114290.0,114280.0,0.92190474]
[1754475474444,1.84016334,114290.0,114280.0,0.92290474]
[1754475474635,1.83916334,114290.0,114280.0,0.92490474]
[1754475475038,1.87279334,114290.0,114280.0,0.92490474]
[1754475476043,1.88760334,114290.0,114280.0,0.92490474]
[1754475476847,1.88760334,114290.0,114280.0,0.5608767]
[1754475477046,1.88760334,114290.0,114280.0,0.92490474]
[1754475477548,2.18684334,114290.0,114280.0,0.92490474]
[1754475478549,2.18688334,114290.0,114280.0,0.92490474]
[1754475478849,0.61437334,114290.0,114280.0,0.92490474]
[1754475479450,1.81513334,114290.0,114280.0,1.22418474]
[1754475479653,1.83920334,114290.0,114280.0,1.22418474]
[1754475479854,1.87283334,114290.0,114280.0,1.22418474]
[1754475480844,1.88764334,114290.0,114280.0,1.22418474]
[1754475481045,2.18688334,114290.0,114280.0,1.22418474]
[1754475482150,2.18688334,114290.0,114280.0,1.58821278]
[1754475482454,2.18688334,114290.0,114280.0,1.22418474]
[1754475482655,0.43452334,114290.0,114280.0,0.8601567]
[1754475482953,0.43452334,114290.0,114280.0,1.22418474]
[1754475487157,0.43452334,114290.0,114280.0,0.8601567]
[1754475487358,0.43452334,114290.0,114280.0,1.22418474]
[1754475491656,0.1750559,114290.0,114280.0,0.8601567]
[1754475491861,4e-05,114290.0,114280.0,1.58821278]
[1754475492659,4e-05,114290.0,114280.0,1.6790403]
[1754475492964,4e-05,114290.0,114280.0,2.0398403]
[1754475493663,0.1750428,114290.0,114280.0,1.6303985]
[1754475494062,0.1750428,114290.0,114280.0,1.3311185]
[1754475494363,0.2950728,114290.0,114280.0,1.2693985]
[1754475494763,0.2950728,114290.0,114280.0,1.2239976]
[1754475500968,0.6558728,114290.0,114280.0,1.2239976]
[1754475501566,0.5835928,114290.0,114280.0,0.9249176]
[1754475501768,0.6558728,114290.0,114280.0,0.7660767]
[1754475501965,0.6558728,114290.0,114280.0,1.1301176]
[1754475502567,0.6558728,114290.0,114280.0,1.1792176]
[1754475502769,0.6558728,114290.0,114280.0,0.7660781]
[1754475503568,0.6558728,114290.0,114280.0,0.8151781]
[1754475503960,0.6558728,114290.0,114280.0,0.8367981]
[1754475504767,0.9551928,114290.0,114280.0,0.5375581]
[1754475505268,0.9551928,114290.0,114280.0,0.5624781]
[1754475506872,0.9551928,114290.0,114280.0,0.926519]
[1754475507267,0.9551928,114290.0,114280.0,0.901599]
[1754475508377,1.3192337,114290.0,114280.0,0.2659]
[1754475508674,0.9551928,114290.0,114280.0,0.2659]
[1754475509769,0.9551928,114290.0,114280.0,0.2649]
[1754475510575,0.9551928,114290.0,114280.0,0.2639]
[1754475510775,0.9551928,114290.0,114280.0,0.2649]
[1754475511474,0.9551928,114290.0,114280.0,0.2639]
[1754475513177,0.9561928,114290.0,114280.0,0.27353]
[1754475513372,0.9561928,114290.0,114280.0,0.07547]
[1754475513570,0.9561928,114290.0,114280.0,0.09709]
[1754475513977,0.9551928,114290.0,114280.0,0.09709]
[1754475514778,0.9551928,114290.0,114280.0,0.01063]
[1754475515874,0.9551928,114290.0,114280.0,0.001]
[1754475517379,1.3159928,114290.0,114280.0,0.001]
[1754475519782,1.6800337,114290.0,114280.0,0.001]
[1754475522187,0.2465789,114280.0,114270.0,0.2629]
[1754475522386,0.6539589,114280.0,114270.0,0.2629]
[1754475523783,0.6539589,114280.0,114270.0,0.2639]
[1754475525185,0.6539589,114280.0,114270.0,0.001]
[1754475526679,1.0179998,114280.0,114270.0,0.001]
[1754475527881,0.2931906,114260.0,114250.0,0.79212726]
[1754475528073,1.3144306,114260.0,114250.0,0.99026326]
[1754475529080,1.3144306,114260.0,114250.0,0.62622236]
[1754475529285,1.3144306,114260.0,114250.0,0.99026326]
[1754475529596,1.3144306,114260.0,114250.0,0.81719726]
[1754475529980,1.3144306,114260.0,114250.0,0.81819726]
[1754475530989,1.3144306,114260.0,114250.0,0.99326436]
[1754475531488,1.3144306,114260.0,114250.0,0.81819726]
[1754475535087,1.3144306,114260.0,114250.0,0.99326496]
[1754475540794,1.3144306,114260.0,114250.0,1.03905532]
[1754475541095,1.3144306,114260.0,114250.0,0.86398762]
[1754475541691,1.72426186,114260.0,114250.0,0.86398762]
[1754475541900,1.72430186,114260.0,114250.0,0.45369126]
[1754475542089,1.72430186,114260.0,114250.0,0.52951126]
[1754475542284,1.3144706,114260.0,114250.0,0.52951126]
[1754475542486,1.3144706,114260.0,114250.0,0.70457926]
[1754475542690,1.3144706,114260.0,114250.0,0.52951126]
[1754475543202,1.3144706,114260.0,114250.0,0.70457926]
[1754475543497,1.3144706,114260.0,114250.0,0.294748]
[1754475543897,1.3144706,114260.0,114250.0,0.70457926]
[1754475545702,1.3144706,114260.0,114250.0,0.11968]
[1754475545897,1.72430186,114260.0,114250.0,0.50644126]
[1754475546199,1.72430186,114260.0,114250.0,0.07456]
[1754475546400,1.72430186,114260.0,114250.0,0.48439126]
[1754475547098,1.72430186,114260.0,114250.0,0.65945936]
[1754475548400,1.72430186,114260.0,114250.0,0.2496281]
[1754475548595,1.72430186,114260.0,114250.0,0.65945936]
[1754475548899,1.72430186,114260.0,114250.0,0.48439126]
[1754475550300,1.72430186,114260.0,114240.0,0.90649272]
[1754475550489,2.47282756,114250.0,114150.0,0.2745929]
[1754475550695,1.95109378,114200.0,114160.0,0.13363697]
[1754475550901,0.175206,114160.0,114150.0,0.31626055]
[1754475551090,1.35566852,114160.0,114150.0,0.35215368]
[1754475551291,0.536006,114160.0,114150.0,0.13367773]
[1754475551491,1.35566852,114160.0,114150.0,0.02352]
[1754475551896,1.35566852,114160.0,114140.0,0.0973]
[1754475551897,0.2132814,114150.0,114140.0,0.0973]
[1754475552105,1.71714392,114150.0,114140.0,0.0973]
[1754475552803,1.26264236,114150.0,114140.0,0.0973]
[1754475554001,1.26264236,114150.0,114140.0,0.12082]
[1754475554203,0.1752519,114130.0,114120.0,0.4443]
[1754475554497,0.5360519,114130.0,114120.0,0.4443]
[1754475555103,0.5360519,114130.0,114120.0,0.12082]
[1754475556002,0.5665728,114130.0,114120.0,0.12082]
[1754475556202,0.5665728,114130.0,114120.0,0.12482]
[1754475556794,0.5816128,114130.0,114120.0,0.12782]
[1754475559101,0.9424128,114130.0,114120.0,0.12782]
[1754475559302,1.33059376,114130.0,114120.0,0.12782]
[1754475560399,1.65375376,114130.0,114120.0,0.007]
[1754475560597,1.65375376,114130.0,114120.0,1e-07]
[1754475561413,0.1903226,114110.0,114100.0,0.32304]
[1754475561709,0.9349426,114110.0,114100.0,0.44386]
[1754475561906,0.9349426,114110.0,114100.0,0.12082]
[1754475562897,0.96582115,114110.0,114100.0,0.12082]
[1754475563404,0.3448379,114100.0,114090.0,0.12082]
[1754475563608,0.1753134,114090.0,114080.0,0.6628176]
[1754475563904,0.5511534,114090.0,114080.0,0.6628176]
[1754475564107,0.5511534,114090.0,114080.0,0.3399776]
[1754475564400,0.5511534,114090.0,114080.0,0.2191576]
[1754475564593,0.5741734,114090.0,114080.0,0.3399776]
[1754475565004,0.5741734,114090.0,114080.0,0.2961459]
[1754475566502,0.5741734,114090.0,114080.0,0.2971459]
[1754475566704,0.5741734,114090.0,114080.0,0.5600459]
[1754475566906,0.5741734,114090.0,114080.0,0.2981459]
[1754475568407,0.5741734,114090.0,114080.0,0.12282]
[1754475568806,0.5741734,114090.0,114080.0,0.2981487]
[1754475569902,0.64427945,114090.0,114080.0,0.2981487]
[1754475570104,0.64427945,114090.0,114080.0,0.66330966]
[1754475570711,0.24541945,114090.0,114080.0,0.66330966]
[1754475571111,0.26045945,114090.0,114080.0,0.66330966]
[1754475574513,0.29133702,114090.0,114080.0,0.66330966]
[1754475575709,0.10098362,114090.0,114080.0,1.71059062]
[1754475576406,1.60098362,114090.0,114080.0,1.71059062]
[1754475576613,1.77629632,114090.0,114080.0,1.71059062]
[1754475577115,1.77629632,114090.0,114080.0,1.34542966]
[1754475578614,1.77629632,114090.0,114080.0,0.98462966]
[1754475578814,1.77629632,114090.0,114080.0,0.66330966]
[1754475579118,1.79956632,114090.0,114080.0,0.98446966]
[1754475579309,2.16036632,114090.0,114080.0,0.98446966]
[1754475580010,2.16040632,114090.0,114080.0,0.98446966]
[1754475581116,2.16040632,114090.0,114080.0,0.6193087]
[1754475581418,2.16040632,114090.0,114080.0,0.98446966]
[1754475581714,2.16040632,114090.0,114080.0,0.6193087]
[1754475582016,2.16040632,114090.0,114080.0,0.98446966]
[1754475583116,2.16040632,114090.0,114080.0,0.6193087]
[1754475583414,2.16040632,114090.0,114080.0,0.07444]
[1754475583613,2.16040632,114090.0,114080.0,0.002]
[1754475583812,2.16923512,114090.0,114080.0,0.002]
[1754475586126,2.13835755,114090.0,114080.0,0.002]
[1754475586923,0.1904732,114070.0,114060.0,1.02003456]
[1754475587126,0.5745432,114070.0,114060.0,1.02003456]
[1754475588128,0.5512732,114070.0,114060.0,1.02003456]
[1754475588424,0.5745432,114070.0,114060.0,1.02454556]
[1754475588625,0.5745432,114070.0,114060.0,0.6593846]
[1754475588923,0.5745432,114070.0,114060.0,1.02454556]
[1754475589120,0.5745432,114070.0,114060.0,0.70834556]
[1754475589317,0.5745432,114070.0,114060.0,0.004]
[1754475589518,0.9353432,114070.0,114060.0,0.004]
[1754475590524,0.9353432,114070.0,114060.0,0.02595]
[1754475590719,0.9353432,114070.0,114060.0,0.02495]
[1754475591025,0.9353432,114070.0,114060.0,0.002]
[1754475591523,1.30050416,114070.0,114060.0,0.002]
[1754475592026,0.9353432,114070.0,114060.0,0.002]
[1754475592820,1.30050416,114070.0,114060.0,0.002]
[1754475593919,0.2137737,114050.0,114040.0,0.12]
[1754475594119,0.2137737,114050.0,114040.0,0.0713]
[1754475594120,0.5745737,114050.0,114040.0,0.0713]
[1754475594322,0.2137891,114040.0,114030.0,0.7582]
[1754475594525,0.5745891,114040.0,114030.0,0.12]
[1754475594723,2.0745891,114040.0,114030.0,0.12]
[1754475595029,2.7127091,114040.0,114030.0,0.12]
[1754475595325,2.7127091,114040.0,114030.0,0.10508]
[1754475596117,2.72140597,114040.0,114030.0,0.002]
[1754475596327,2.72140597,114040.0,114030.0,0.02495]
[1754475596823,2.72140597,114040.0,114030.0,0.2974045]
[1754475597424,2.72140597,114040.0,114030.0,0.122]
[1754475598822,2.72140597,114040.0,114030.0,0.10708]
[1754475599026,2.72140597,114040.0,114030.0,0.05923]
[1754475599329,2.72140597,114040.0,114030.0,0.03595]
[1754475600328,2.72140597,114040.0,114030.0,0.2113545]
[1754475600623,2.72140597,114040.0,114030.0,0.2600545]
[1754475600921,2.72140597,114040.0,114030.0,0.2994045]
[1754475602323,2.72140597,114040.0,114030.0,0.2361343]
[1754475602527,2.72140597,114040.0,114030.0,0.2994043]
[1754475606832,2.3276391,114040.0,114030.0,1.02536526]
[1754475607027,0.1905125,114050.0,114040.0,0.2237391]
[1754475607230,0.1905125,114050.0,114040.0,0.66055006]
[1754475607431,0.1905125,114050.0,114040.0,0.2953891]
[1754475607726,1.7137825,114050.0,114040.0,0.66055006]
[1754475608131,2.7118225,114050.0,114040.0,0.66055006]
[1754475608528,2.3510225,114050.0,114040.0,0.66055006]
[1754475608922,2.3510225,114050.0,114040.0,0.66155006]
[1754475609125,3.07698346,114050.0,114040.0,0.001]
[1754475609534,2.7118225,114050.0,114040.0,0.002]
[1754475615936,3.07698346,114050.0,114040.0,0.002]
[1754475616135,2.7118225,114050.0,114040.0,0.002]
[1754475616538,3.07698346,114050.0,114040.0,0.002]
[1754475617630,2.7118225,114050.0,114040.0,0.002]
[1754475621238,3.07698346,114050.0,114040.0,0.002]
[1754475622536,3.07698346,114050.0,114040.0,0.001]
[1754475622736,0.1913092,114040.0,114030.0,0.03432]
[1754475622936,0.5753392,114040.0,114030.0,0.0678]
[1754475623841,0.5753392,114040.0,114030.0,0.11399924]
[1754475624239,0.5753392,114040.0,114030.0,0.03532]
[1754475625138,0.5753392,114040.0,114030.0,0.03632]
[1754475625743,0.5753392,114040.0,114030.0,0.002]
[1754475626038,0.5753392,114040.0,114030.0,0.02652]
[1754475629040,0.5753392,114040.0,114030.0,0.06]
[1754475629351,0.5753392,114040.0,114030.0,0.12291]
[1754475629844,0.5753392,114040.0,114030.0,0.0756]
[1754475630643,0.5753392,114040.0,114030.0,0.10908]
[1754475630943,0.5753392,114040.0,114030.0,0.12291]
[1754475633248,0.5753392,114040.0,114030.0,0.10908]
[1754475633454,0.5753392,114040.0,114030.0,0.18775924]
[1754475633651,0.5753392,114040.0,114030.0,0.10908]
[1754475634555,0.5753392,114040.0,114030.0,0.12291]
[1754475634746,0.5753392,114040.0,114030.0,0.20158924]
[1754475636652,0.5753392,114040.0,114030.0,0.15427924]
[1754475636854,0.5753392,114040.0,114030.0,0.13821924]
[1754475637859,0.5753392,114040.0,114030.0,0.17169924]
[1754475638254,0.5753392,114040.0,114030.0,0.18552924]
[1754475639145,0.5753392,114040.0,114030.0,0.13821924]
[1754475639353,0.5753392,114040.0,114030.0,0.08067924]
[1754475639861,0.5753392,114040.0,114030.0,0.10555924]
[1754475640847,0.94050016,114040.0,114030.0,0.10555924]
[1754475641559,0.5753392,114040.0,114030.0,0.10555924]
[1754475645857,0.1906198,114020.0,114010.0,0.10988056]
[1754475646167,1.92903076,114020.0,114010.0,0.02488]
[1754475646364,1.5637898,114020.0,114010.0,0.2003152]
[1754475646567,1.5637898,114020.0,114010.0,0.2422652]
[1754475646768,1.5637898,114020.0,114010.0,0.08065]
[1754475647064,1.5637898,114020.0,114010.0,0.08265]
[1754475647264,1.30011076,114020.0,114010.0,0.004]
[1754475647470,1.92895076,114020.0,114010.0,0.004]
[1754475648566,1.5637898,114020.0,114010.0,0.004]
[1754475648763,1.5637898,114020.0,114010.0,0.02888]
[1754475649164,1.5637898,114020.0,114010.0,0.004]
[1754475649165,1.92895076,114020.0,114010.0,0.004]
[1754475650665,1.99778091,114020.0,114010.0,0.004]
[1754475651172,1.63261995,114020.0,114010.0,0.004]
[1754475651372,1.63149995,114020.0,114010.0,0.004]
[1754475651762,1.63149995,114020.0,114010.0,0.02888]
[1754475652873,1.99666091,114020.0,114010.0,0.02888]
[1754475653074,1.99666091,114020.0,114010.0,0.004]
[1754475656071,1.63149995,114020.0,114010.0,0.004]
[1754475656671,1.99666091,114020.0,114010.0,0.004]
[1754475659775,1.63149995,114020.0,114010.0,0.004]
[1754475659976,1.99666091,114020.0,114010.0,0.004]
[1754475660369,1.00377995,114020.0,114010.0,0.1794349]
[1754475660574,0.06883015,114020.0,114010.0,0.66331586]
[1754475660774,0.6390933,114040.0,114030.0,0.2227444]
[1754475660977,1.2654933,114040.0,114030.0,0.65928536]
[1754475661282,1.1778761,114040.0,114030.0,0.2941244]
[1754475661579,1.1778761,114040.0,114030.0,0.65928536]
[1754475661766,0.5741261,114040.0,114030.0,0.2941244]
[1754475661970,1.2008061,114040.0,114030.0,0.2941244]
[1754475662171,1.2019261,114040.0,114030.0,0.65928536]
[1754475663268,1.27061076,114040.0,114030.0,0.65928536]
[1754475663472,1.27061076,114040.0,114030.0,0.2941244]
[1754475663669,0.2133344,114030.0,114020.0,0.49171116]
[1754475663877,0.5741344,114030.0,114020.0,0.3818306]
[1754475664380,0.5741344,114030.0,114020.0,0.74699156]